{"text_format":"3","workbook":"xlsx","n_sheets":1,"sheets":["тестовый"],"not_rendered":{"external_links":1},"read":"whole","date_system":"1900"}

{"sheet":"тестовый","index":0,"n_rows":13,"n_cols":17,"rows_kept":13,"merged":[[0,0,0,16]]}
["Протокол по итогам муниципального этапа ВсОШ по предмету \"НЕМЕЦКИЙ ЯЗЫК\"  Альметьевского муниципального района в 2019-2020 учебном году "]
["№ п/п","Муниципалитет","Полное наименование образовательного учреждения (по уставу)","Фамилия","Имя","Отчество","Класс","Дата рождения","Пол","Балл","Апеляционный балл","Итоговый балл","Максимальный балл","Статус","Фамилия, имя, отчество педагога, подготовившего участника олимпиады","Полное наименование образовательного учреждения (по уставу)","Предмет"]
[1,"Альметьевский","МАОУ \" Гимназия №5\" г.Альметьевска РТ",{"$f":"[1]Лист1!E11","v":"Хамзина "},{"$f":"[1]Лист1!F11","v":"Далия"},{"$f":"[1]Лист1!G11","v":"Флюровна"},7,"2004-03-30","ж",55,null,null,106,"призер ","Мингалимова. С.И.",{"$f":"C3","v":"МАОУ \" Гимназия №5\" г.Альметьевска РТ"},"Немецкий язык"]
[2,{"$f":"$B$3","v":"Альметьевский"},{"$f":"$C$12","v":"МАОУ \"СОШ №10 с углубленным изучением  отдельных предметов\""},{"$f":"[1]Лист1!E17","v":"Жирнова"},{"$f":"[1]Лист1!F17","v":"Елизавета"},{"$f":"[1]Лист1!G17","v":"Петровна"},9,"2006-06-24",null,82,null,null,111,null,"Закирова Р.Х.","МАОУ \"СОШ №10 с углубленным изучением  отдельных предметов\"",{"$f":"$Q$3","v":"Немецкий язык"}]
[3,"Альметьевский","МАОУ \"Лицей  №2\" г.Альметьевска РТ",{"$f":"[1]Лист1!E18","v":"Валиева"},{"$f":"[1]Лист1!F18","v":"Камилла"},{"$f":"[1]Лист1!G18","v":"Рамилевна"},9,"2004-04-01","ж",67,null,null,{"$f":"$M$4","v":111},null,{"$f":"$O$3","v":"Мингалимова. С.И."},"МАОУ \"Лицей  №2\" г.Альметьевска РТ","Немецкий язык"]
[4,"Альметьевский",{"$f":"$C$3","v":"МАОУ \" Гимназия №5\" г.Альметьевска РТ"},{"$f":"[1]Лист1!E20","v":"Арсланова"},{"$f":"[1]Лист1!F20","v":"Светлана"},"Ильшатовна ",9,"2004-04-24","ж",47,null,null,111,null,"Сахипова А.А.","МАОУ \" Гимназия №5\" г.Альметьевска РТ","Немецкий язык"]
[5,"Альметьевский",{"$f":"$C$3","v":"МАОУ \" Гимназия №5\" г.Альметьевска РТ"},{"$f":"[1]Лист1!E21","v":"Попова"},{"$f":"[1]Лист1!F21","v":"Маргарита"},{"$f":"[1]Лист1!G21","v":"Максимовна"},9,"2004-09-26","ж",45,null,null,111,null,{"$f":"$O$3","v":"Мингалимова. С.И."},"МАОУ \" Гимназия №5\" г.Альметьевска РТ","Немецкий язык"]
[6,{"$f":"$B$3","v":"Альметьевский"},{"$f":"$C$8","v":"МАОУ \"СОШ №16\" г.Альметьевска РТ"},{"$f":"[1]Лист1!E24","v":"Онуфриева  "},{"$f":"[1]Лист1!F24","v":" Анастасия  "},{"$f":"[1]Лист1!G24","v":"  Сергеевна"},{"$f":"[1]Лист1!H24","v":10},"2003-05-30","ж",71,null,null,{"$f":"$M$4","v":111},null,"Шлыкова Г.А.",{"$f":"C8","v":"МАОУ \"СОШ №16\" г.Альметьевска РТ"},{"$f":"$Q$3","v":"Немецкий язык"}]
[7,"Альметьевский",{"$f":"$C$12","v":"МАОУ \"СОШ №10 с углубленным изучением  отдельных предметов\""},"Лотфуллин ","Чингиз","Дамирович",10,"2019-07-23","м",68,null,null,111,null,"Декханова М.Н.","МАОУ \"СОШ №10 с углубленным изучением  отдельных предметов\"","Немецкий язык"]
[8,"Альметьевский","МАОУ \"СОШ №16\" г.Альметьевска РТ",{"$f":"[1]Лист1!E23","v":"Евграфова  "},{"$f":"[1]Лист1!F23","v":" Юлия  "},{"$f":"[1]Лист1!G23","v":" Евгеньевна"},{"$f":"[1]Лист1!H23","v":10},"2003-08-10","ж",56,null,null,111,null,"Шлыкова Г.А.","МАОУ \"СОШ №16\" г.Альметьевска РТ","Немецкий язык"]
[9,"Альметьевский",{"$f":"$C$3","v":"МАОУ \" Гимназия №5\" г.Альметьевска РТ"},{"$f":"[1]Лист1!E25","v":"Ильина"},{"$f":"[1]Лист1!F25","v":"Елизавета"},{"$f":"[1]Лист1!G25","v":"Михайловна"},{"$f":"[1]Лист1!H25","v":11},"2003-01-29","ж",102,null,null,111,null,{"$f":"$O$3","v":"Мингалимова. С.И."},"МАОУ \" Гимназия №5\" г.Альметьевска РТ","Немецкий язык"]
[10,"Альметьевский","МАОУ \"СОШ №10 с углубленным изучением  отдельных предметов\"",{"$f":"[1]Лист1!E26","v":"Сафаргалеев"},{"$f":"[1]Лист1!F26","v":"Самат"},{"$f":"[1]Лист1!G26","v":"Нафисович"},{"$f":"[1]Лист1!H26","v":11},"2001-10-29","м",83,null,null,111,null,{"$f":"$O$9","v":"Декханова М.Н."},"МАОУ \"СОШ №10 с углубленным изучением  отдельных предметов\"","Немецкий язык"]
[11,"Альметьевский",{"$f":"$C$12","v":"МАОУ \"СОШ №10 с углубленным изучением  отдельных предметов\""},{"$f":"[1]Лист1!E28","v":"Газизов"},{"$f":"[1]Лист1!F28","v":"Рустам"},{"$f":"[1]Лист1!G28","v":"Раисович"},{"$f":"[1]Лист1!H28","v":11},{"$f":"$H$12","v":"2001-10-29"},"м",74,null,null,111,null,{"$f":"$O$12","v":"Декханова М.Н."},"МАОУ \"СОШ №10 с углубленным изучением  отдельных предметов\"","Немецкий язык"]